fUSD/lending_fUSD_20240319
["ID","MTS","AMOUNT","RATE_DAILY","PERIOD"]
[319582309,1710881473961,-500.0,0.0003041,2]
[319582310,1710881473979,-201.56154,0.0003041,7]
[319582311,1710881473993,-201.56154,0.0003041,7]
[319582312,1710881474005,-500.0,0.0003041,2]
[319582313,1710881474016,-201.56153,0.0003041,7]
[319582314,1710881474026,-2276.57,0.0003041,2]
[319582315,1710881474037,-500.0,0.0003041,2]
[319582316,1710881474048,-500.0,0.0003041,2]
[319582317,1710881474058,-500.0,0.0003041,2]
[319582318,1710881474069,-4668.81,0.0003041,2]
[319582319,1710881474080,-500.0,0.0003041,2]
[319582320,1710881474091,-593.86148843,0.0003041,2]
[319582321,1710881474102,-500.0,0.0003041,2]
[319582322,1710881474112,-3291.76,0.0003041,2]
[319582323,1710881474123,-500.0,0.0003041,2]
[319582324,1710881474134,-219.6160258,0.0003041,2]
[319582325,1710881474144,-3020.85,0.0003041,2]
[319582326,1710881474154,-536.16,0.0003041,2]
[319582327,1710881474164,-616.02,0.0003041,2]
[319582328,1710881474849,-500.0,0.0003041,2]
[319582329,1710881474875,-2601.54,0.0003041,2]
[319582330,1710881474895,-895.6,0.0003041,2]
[319582331,1710881474921,-942.52,0.0003041,2]
[319582332,1710881474946,-763.72,0.0003041,2]
[319582333,1710881474958,-500.0,0.0003041,2]
[319582334,1710881474968,-500.0,0.0003041,2]
[319582335,1710881474978,-500.0,0.0003041,2]
[319582336,1710881474988,-500.0,0.0003041,2]
[319582337,1710881474998,-2634.96,0.0003041,2]
[319582338,1710881475008,-500.0,0.0003041,2]
[319582339,1710881475018,-500.0,0.0003041,2]
[319582340,1710881475029,-500.0,0.0003041,2]
[319582341,1710881475039,-500.0,0.0003041,2]
[319582342,1710881475048,-3061.24,0.0003041,2]
[319582343,1710881475058,-500.0,0.0003041,2]
[319582344,1710881475068,-1140.6,0.0003041,2]
[319582345,1710881475078,-500.0,0.0003041,2]
[319582346,1710881475088,-500.0,0.0003041,2]
[319582347,1710881475098,-500.0,0.0003041,2]
[319582348,1710881475108,-500.0,0.0003041,2]
[319582349,1710881475118,-619.82,0.0003041,2]
[319582350,1710881475128,-585.64,0.0003041,2]
[319582351,1710881475139,-2104.14,0.0003041,2]
[319582352,1710881475150,-528.12364998,0.0003041,2]
[319582353,1710881475160,-500.0,0.0003041,2]
[319582354,1710881475169,-500.0,0.0003041,2]
[319582355,1710881475179,-500.0,0.0003041,2]
[319582356,1710881475190,-500.0,0.0003041,2]
[319582357,1710881475199,-467.43801016,0.0003041,2]
[319582358,1710881475209,-500.0,0.0003041,2]
[319582359,1710881475219,-500.0,0.0003041,2]
[319582360,1710881475230,-500.0,0.0003041,2]
[319582361,1710881475239,-559.96,0.0003041,2]
[319582362,1710881475249,-151.0,0.0003041,7]
[319582363,1710881475260,-151.0,0.0003041,7]
[319582364,1710881475270,-151.0,0.0003041,7]
[319582365,1710881475282,-500.0,0.0003041,2]
[319582366,1710881475292,-500.0,0.0003041,2]
[319582367,1710881475302,-500.0,0.0003041,2]
[319582368,1710881475319,-649.59,0.0003041,2]
[319582369,1710881475329,-1495.67,0.0003041,2]
[319582370,1710881475351,-500.0,0.0003041,2]
[319582371,1710881475372,-1546.85,0.0003041,2]
[319582372,1710881475381,-500.0,0.0003041,2]
[319582373,1710881475390,-4434.0,0.0003041,2]
[319582374,1710881475399,-500.0,0.0003041,2]
[319582375,1710881475421,-500.0,0.0003041,2]
[319582376,1710881475430,-500.0,0.0003041,2]
[319582377,1710881475442,-29908.61,0.0003041,2]
[319582378,1710881475451,-990.75,0.0003041,2]
[319582379,1710881475463,-1174.86,0.0003041,2]
[319582380,1710881475473,-2776.49,0.0003041,2]
[319582381,1710881475485,-504.26875609,0.0003041,2]
[319582382,1710881475494,-500.0,0.0003041,2]
[319582383,1710881475503,-500.0,0.0003041,2]
[319582384,1710881475512,-2834.94,0.0003041,2]
[319582385,1710881475522,-1680.4,0.0003041,2]
[319582386,1710881475531,-2340.36,0.0003041,2]
[319582387,1710881475540,-1883.13,0.0003041,2]
[319582388,1710881475549,-500.0,0.0003041,2]
[319582389,1710881475558,-500.0,0.0003041,2]
[319582390,1710881475567,-1039.73,0.0003041,2]
[319582391,1710881475576,-500.0,0.0003041,2]
[319582392,1710881475585,-2649.93,0.0003041,2]
[319582393,1710881475594,-1562.08,0.0003041,2]
[319582394,1710881475603,-500.0,0.0003041,2]
[319582395,1710881475612,-647.98,0.0003041,2]
[319582396,1710881475621,-30252.01,0.0003041,2]
[319582397,1710881475631,-617.45,0.0003041,2]
[319582398,1710881475653,-5265.21,0.0003041,2]
[319582399,1710881475679,-5782.36,0.0003041,2]
[319582400,1710881475706,-2483.41,0.0003041,2]
[319582401,1710881475718,-500.0,0.0003041,2]
[319582402,1710881475728,-500.0,0.0003041,2]
[319582403,1710881475738,-500.0,0.0003041,2]
[319582404,1710881475747,-3142.0,0.0003041,2]
[319582405,1710881475757,-151.0,0.0003041,7]
[319582406,1710881475767,-151.0,0.0003041,7]
[319582407,1710881475777,-514.99,0.0003041,2]
[319582408,1710881475787,-151.0,0.0003041,7]
[319582409,1710881475796,-3452.602006,0.0003041,7]
[319582410,1710881475805,-3452.602006,0.0003041,7]
[319582411,1710881475814,-3452.602006,0.0003041,7]
[319582412,1710881475824,-500.0,0.0003041,2]
[319582413,1710881475833,-500.0,0.0003041,2]
[319582414,1710881475842,-29094.89,0.0003041,2]
[319582415,1710881475851,-399.453969,0.0003041,7]
[319582416,1710881475860,-500.0,0.0003041,2]
[319582417,1710881475869,-500.0,0.0003041,2]
[319582418,1710881475877,-399.453969,0.0003041,7]
[319582419,1710881475887,-3452.602006,0.0003041,7]
[319582420,1710881475896,-399.453969,0.0003041,7]
[319582421,1710881475905,-3452.602006,0.0003041,7]
[319582422,1710881475915,-3452.602004,0.0003041,7]
[319582423,1710881475925,-500.0,0.0003041,2]
[319582424,1710881475935,-399.453969,0.0003041,7]
[319582425,1710881475944,-399.453969,0.0003041,7]
[319582426,1710881475953,-500.0,0.0003041,2]
[319582427,1710881475962,-399.453972,0.0003041,7]
[319582428,1710881475971,-500.0,0.0003041,2]
[319582429,1710881475981,-12392.75,0.0003041,2]
[319582430,1710881475990,-4741.54,0.0003041,2]
[319582431,1710881475999,-500.0,0.0003041,2]
[319582432,1710881476009,-500.0,0.0003041,2]
[319582433,1710881476017,-830.04,0.0003041,2]
[319582434,1710881476026,-500.0,0.0003041,2]
[319582435,1710881476035,-354.92386087,0.0003041,2]
[319582436,1710881476044,-549.19,0.0003041,2]
[319582437,1710881476052,-2505.44,0.0003041,2]
[319582438,1710881476061,-628.72,0.0003041,2]
[319582439,1710881476070,-500.0,0.0003041,2]
[319582440,1710881476080,-3717.168607,0.0003041,7]
[319582441,1710881476088,-531.96,0.0003041,2]
[319582442,1710881476097,-3717.168607,0.0003041,7]
[319582443,1710881476106,-500.0,0.0003041,2]
[319582444,1710881476115,-3717.168607,0.0003041,7]
[319582445,1710881476124,-500.0,0.0003041,2]
[319582446,1710881476133,-13957.34,0.0003041,2]
[319582447,1710881476143,-250.241438,0.0003041,7]
[319582448,1710881476152,-250.241438,0.0003041,7]
[319582449,1710881476161,-250.241438,0.0003041,7]
[319582450,1710881476171,-3717.168607,0.0003041,7]
[319582451,1710881476181,-500.0,0.0003041,2]
[319582452,1710881476192,-500.0,0.0003041,2]
[319582453,1710881476202,-3717.168607,0.0003041,7]
[319582454,1710881476210,-3717.168605,0.0003041,7]
[319582455,1710881476220,-500.0,0.0003041,2]
[319582456,1710881476229,-24479.15,0.0003041,2]
[319582457,1710881476238,-250.241438,0.0003041,7]
[319582458,1710881476247,-8783.16,0.0003041,2]
[319582459,1710881476255,-250.241438,0.0003041,7]
[319582460,1710881476264,-1056.05,0.0003041,2]
[319582461,1710881476273,-713.48,0.0003041,2]
[319582462,1710881476283,-250.241444,0.0003041,7]
[319582463,1710881476292,-500.0,0.0003041,2]
[319582464,1710881476301,-500.0,0.0003041,2]
[319582465,1710881476310,-500.0,0.0003041,2]
[319582466,1710881476319,-500.0,0.0003041,2]
[319582467,1710881476328,-500.0,0.0003041,2]
[319582468,1710881476337,-1552.58,0.0003041,2]
[319582469,1710881476346,-2415.28,0.0003041,2]
[319582470,1710881476356,-810.08,0.0003041,2]
[319582471,1710881476365,-1249.83,0.0003041,2]
[319582472,1710881476374,-194.65888817,0.0003041,2]
[319582473,1710881476383,-16113.11,0.0003041,2]
[319582474,1710881476392,-6112.02,0.0003041,2]
[319582475,1710881476401,-597.15,0.0003041,2]
[319582476,1710881476410,-500.0,0.0003041,2]
[319582477,1710881476422,-1821.68,0.0003041,2]
[319582478,1710881476431,-580.76,0.0003041,2]
[319582479,1710881476441,-500.0,0.0003041,2]
[319582480,1710881476451,-500.0,0.0003041,2]
[319582481,1710881476462,-428.403977,0.0003041,7]
[319582482,1710881476471,-2713.17,0.0003041,2]
[319582483,1710881476480,-428.403977,0.0003041,7]
[319582484,1710881476489,-500.0,0.0003041,2]
[319582485,1710881476498,-428.403977,0.0003041,7]
[319582486,1710881476508,-500.0,0.0003041,2]
[319582487,1710881476517,-500.0,0.0003041,2]
[319582488,1710881476527,-555.66,0.0003041,2]
[319582489,1710881476537,-692.2,0.0003041,2]
[319582490,1710881476546,-428.403977,0.0003041,7]
[319582491,1710881476555,-428.403977,0.0003041,7]
[319582492,1710881476564,-428.403983,0.0003041,7]
[319582493,1710881476574,-4483.99,0.0003041,2]
[319582494,1710881476583,-12033.33,0.0003041,2]
[319582495,1710881476594,-500.0,0.0003041,2]
[319582496,1710881476603,-500.0,0.0003041,2]
[319582497,1710881476612,-500.0,0.0003041,2]
[319582498,1710881476622,-23209.87,0.0003041,2]
[319582499,1710881476631,-500.0,0.0003041,2]
[319582500,1710881476641,-9389.24,0.0003041,2]
[319582501,1710881476651,-3132.89,0.0003041,2]
[319582502,1710881476661,-500.0,0.0003041,2]
[319582503,1710881476670,-500.0,0.0003041,2]
[319582504,1710881476680,-3173.34,0.0003041,2]
[319582505,1710881476690,-500.0,0.0003041,2]
[319582506,1710881476699,-500.0,0.0003041,2]
[319582507,1710881476709,-500.0,0.0003041,2]
[319582508,1710881476718,-5337.05,0.0003041,2]
[319582509,1710881476729,-1476.74,0.0003041,2]
[319582510,1710881476738,-500.0,0.0003041,2]
[319582511,1710881476748,-4591.84,0.0003041,2]
[319582512,1710881476758,-500.0,0.0003041,2]
[319582513,1710881476768,-10081.48,0.0003041,2]
[319582514,1710881476777,-989.47080764,0.0003041,2]
[319582515,1710881477432,-1087.667005,0.0003041,2]
[319582516,1710881477454,-1655.09464012,0.0003041,2]
[319582517,1710881477470,-1664.29754724,0.0003041,2]
[319582518,1710881477481,-500.0,0.0003041,2]
[319582519,1710881477492,-500.0,0.0003041,2]
[319582520,1710881477502,-500.0,0.0003041,2]
[319582521,1710881477513,-2487.69,0.0003041,2]
[319582522,1710881477523,-563.77,0.0003041,2]
[319582523,1710881477533,-252.006941,0.0003041,7]
[319582524,1710881477544,-252.006941,0.0003041,7]
[319582525,1710881477554,-4480.22867076,0.0003041,2]
[319582526,1710881477639,-641.58627879,0.00030136,7]
[319582527,1710881477650,-502.31090472,0.00030136,7]
[319582528,1710881477700,-8856.10281649,0.00030136,7]
[319582529,1710881477709,-367.13132924,0.0003041,2]
[319582530,1710881477718,-711.36,0.0003041,2]
[319582531,1710881477727,-252.006941,0.0003041,7]
[319582532,1710881477736,-500.0,0.0003041,2]
[319582533,1710881477746,-500.0,0.0003041,2]
[319582534,1710881477756,-1480.11,0.0003041,2]
[319582535,1710881477765,-500.0,0.0003041,2]
[319582536,1710881477774,-500.0,0.0003041,2]
[319582537,1710881477783,-252.006941,0.0003041,7]
[319582538,1710881477792,-252.006941,0.0003041,7]
[319582539,1710881477802,-252.006932,0.0003041,7]
[319582540,1710881477811,-800.92,0.0003041,2]
[319582541,1710881477820,-2379.04557487,0.0003041,2]
[319582542,1710881477833,-1720.57442513,0.0003041,2]
[319582543,1710881477842,-500.0,0.0003041,2]
[319582544,1710881477851,-282.35455666,0.0003041,2]
[319582545,1710881477860,-500.0,0.0003041,2]
[319582546,1710881477870,-500.0,0.0003041,2]
[319582547,1710881477879,-3376.07101821,0.0003041,2]
[319582548,1710881477890,-1216.99179144,0.0003041,2]
[319582566,1710882093007,6406.0798,0.000139,2]
[319582567,1710882217832,254.2358,0.000139,2]
[319582568,1710882291131,3700.502,0.000139,2]
[319582569,1710882313846,-155.0,0.00013973,2]
[319582570,1710882313869,-155.0,0.00013974,2]
[319582571,1710882313890,-261.89255077,0.00013975,2]
[319582572,1710882313911,-135593.48492057,0.00014,2]
[319582573,1710882313933,-793.0686,0.000149,2]
[319582574,1710882313954,-714.28407967,0.00014998,2]
[319582575,1710882313975,-155.0,0.00014998,2]
[319582576,1710882313994,-155.0,0.00014999,2]
[319582577,1710882314017,-2200506.88135532,0.00015,2]
[319582578,1710882333517,379.5774,0.000149,2]
[319582621,1710882632231,-253.64923595,0.00019079,2]
[319582622,1710882632241,-196.58307071,0.0001908,2]
[319582623,1710882632250,-261.89255077,0.00019899,2]
[319582624,1710882632259,-329.0788,0.000199,2]
[319582625,1710882632268,-288.4601239,0.0002,2]
[319582626,1710882632277,-27.965074,0.0002,2]
[319582627,1710882632289,-681.13634762,0.0002,2]
[319582628,1710882632298,-1754.59141889,0.0002,2]
[319582629,1710882632307,-1138.2606088,0.0002,2]
[319582630,1710882632316,-3703.79016686,0.0002,2]
[319582631,1710882632326,-4138.93901586,0.0002,2]
[319582632,1710882632377,-2514.06098414,0.0002,2]
[319582633,1710882632387,-2952.13159675,0.0002,2]
[319582634,1710882632397,-1252.30741911,0.0002,2]
[319582636,1710882632547,-429.79586895,0.0002,2]
[319582638,1710882632559,-2267.89671194,0.0002,2]
[319582640,1710882632568,-761.61895548,0.0002,2]
[319582642,1710882632579,-150.0,0.0002,2]
[319582643,1710882632589,-400.0,0.0002,2]
[319582644,1710882632597,-155.0,0.00020722,2]
[319582645,1710882632607,-196.58307066,0.00020723,2]
[319582646,1710882632617,-803.71882088,0.00021,2]
[319582647,1710882632627,-1639.96271865,0.00021,2]
[319582648,1710882632637,-1382.88873425,0.00021,2]
[319582649,1710882632646,-20019.99830895,0.00021,2]
[319582650,1710882632656,-207.6,0.00021465,2]
[319582651,1710882632665,-1361.61670232,0.00022,2]
[319582652,1710882632675,-499.99,0.00022101,2]
[319582653,1710882632684,-150.99,0.00022101,2]
[319582654,1710882632694,-196.58307066,0.00022367,2]
[319582655,1710882632703,-250.0,0.00023,3]
[319582656,1710882632712,-8291.58,0.00023285,2]
[319582657,1710882632721,-2194.27,0.00023416,2]
[319582658,1710882632730,-250.0,0.00023536,2]
[319582659,1710882632740,-196.28,0.00023564,2]
[319582660,1710882632751,-250.0,0.00023615,2]
[319582661,1710882632762,-250.0,0.00023616,2]
[319582662,1710882632771,-8291.58,0.00023659,2]
[319582663,1710882632780,-207.6,0.00023729,2]
[319582664,1710882632791,-204.35,0.00023736,2]
[319582665,1710882632802,-1633.04,0.00023771,2]
[319582666,1710882632812,-209.6,0.00023792,2]
[319582667,1710882632821,-208.64,0.00023809,2]
[319582668,1710882632833,-152.73,0.00023826,2]
[319582669,1710882632843,-196.58307066,0.0002401,2]
[319582670,1710882632853,-159.98,0.00024023,2]
[319582671,1710882632862,-8291.58,0.00024033,2]
[319582672,1710882632872,-391.27531518,0.0002421,2]
[319582673,1710882632881,-1500.0,0.000243,2]
[319582674,1710882632891,-8291.58,0.00024407,2]
[319582675,1710882632900,-215.96504293,0.00024771,2]
[319582676,1710882632910,-8291.58,0.00024781,2]
[319582677,1710882632919,-215.96504293,0.0002479,2]
[319582678,1710882632930,-1500.0,0.000248,2]
[319582679,1710882632939,-215.96504293,0.0002499,2]
[319582680,1710882632949,-215.96504293,0.0002499,2]
[319582681,1710882632958,-215.96504293,0.0002499,2]
[319582682,1710882632967,-8780.71345077,0.00025,2]
[319582683,1710882632980,-380.11595976,0.00025,2]
[319582684,1710882633000,-5286.47150592,0.00025,2]
[319582685,1710882633011,-14469.71565427,0.00025,30]
[319582686,1710882633021,-170.15,0.00025129,2]
[319582687,1710882633031,-215.96504293,0.00025145,2]
[319582688,1710882633040,-8291.58,0.00025155,2]
[319582689,1710882633050,-215.96504293,0.0002529,2]
[319582690,1710882633060,-1500.0,0.000253,2]
[319582691,1710882633069,-481.22181874,0.000255,5]
[319582692,1710882633080,-215.96504293,0.0002552,2]
[319582693,1710882633090,-8291.58,0.0002553,2]
[319582694,1710882633099,-222.032006,0.00025638,3]
[319582695,1710882633108,-222.032006,0.00025638,2]
[319582696,1710882633118,-222.032006,0.00025648,2]
[319582697,1710882633127,-222.032006,0.00025648,3]
[319582698,1710882633137,-196.58307066,0.00025654,2]
[319582699,1710882633146,-222.032006,0.00025748,2]
[319582700,1710882633156,-222.032006,0.00025748,3]
[319582701,1710882633166,-1500.0,0.000258,2]
[319582702,1710882633175,-222.032006,0.00025848,3]
[319582703,1710882633194,-222.032006,0.00025848,2]
[319582704,1710882633204,-215.96504293,0.00025894,2]
[319582705,1710882633213,-8291.58,0.00025904,2]
[319582706,1710882633223,-222.032006,0.00025948,2]
[319582707,1710882633232,-222.032006,0.00025948,3]
[319582708,1710882633242,-215.96504293,0.00025969,2]
[319582709,1710882633251,-215.96504293,0.00025969,2]
[319582710,1710882633261,-358.07643768,0.00025979,2]
[319582711,1710882633270,-17152.30049208,0.00025979,2]
[319582712,1710882633279,-150.0,0.00025982,120]
[319582713,1710882633288,-207.6,0.00025993,2]
[319582714,1710882633298,-222.032006,0.00026028,3]
[319582715,1710882633307,-222.032006,0.00026028,2]
[319582716,1710882633317,-215.96504293,0.00026029,2]
[319582717,1710882633327,-215.96504293,0.00026029,2]
[319582718,1710882633337,-215.96504293,0.00026029,2]
[319582719,1710882633347,-215.96504293,0.00026029,2]
[319582720,1710882633356,-215.96504293,0.00026029,2]
[319582721,1710882633366,-215.96504293,0.00026029,2]
[319582722,1710882633376,-215.96504293,0.00026029,2]
[319582723,1710882633385,-215.96504293,0.00026029,2]
[319582724,1710882633395,-215.96504293,0.00026029,2]
[319582725,1710882633404,-161.60434799,0.00026038,2]
[319582726,1710882633416,-222.032006,0.00026038,2]
[319582727,1710882633427,-222.032006,0.00026038,3]
[319582728,1710882633438,-100065.9841,0.00026039,7]
[319582729,1710882633448,-1470.94423856,0.00026039,2]
[319582730,1710882633459,-7132.42566992,0.00026039,2]
[319582731,1710882633470,-12066.54013595,0.00026039,2]
[319582732,1710882633480,-10350.57886518,0.00026039,2]
[319582733,1710882633491,-5015.83673576,0.00026039,2]
[319582734,1710882633502,-2644.75424424,0.00026039,2]
[319582735,1710882633512,-2374.46662197,0.00026039,2]
[319582736,1710882633522,-5424.47357351,0.00026039,2]
[319582737,1710882633532,-3142.06294672,0.00026039,2]
[319582738,1710882633542,-10077.3675354,0.00026039,2]
[319582739,1710882633552,-22057.00119539,0.00026039,2]
[319582740,1710882633562,-14637.30806446,0.00026039,2]
[319582741,1710882633574,-1033.88270576,0.00026039,2]
[319582742,1710882633586,-5774.22394093,0.00026039,2]
[319582743,1710882633597,-174.80582141,0.00026039,2]
[319582744,1710882633606,-4000.0,0.00026039,2]
[319582745,1710882633616,-841.45515332,0.00026039,2]
[319582746,1710882633625,-1011.32402519,0.00026039,2]
[319582747,1710882633636,-184.69381341,0.00026039,2]
[319582748,1710882633646,-89640.0,0.00026039,2]
[319582749,1710882633657,-8932.16207524,0.00026039,2]
[319582750,1710882633668,-1268.43455427,0.00026039,2]
[319582751,1710882633678,-4782.14809695,0.00026039,2]
[319582752,1710882633688,-21944.52233128,0.00026039,2]
[319582753,1710882633699,-83000.0,0.00026039,2]
[319582754,1710882633709,-12420.93267965,0.00026039,2]
[319582755,1710882633719,-1859.53751511,0.00026039,2]
[319582756,1710882633729,-643.0,0.00026039,2]
[319582757,1710882633739,-938.88814446,0.00026039,2]
[319582758,1710882633750,-554.55853554,0.00026039,2]
[319582759,1710882633762,-1778.69697906,0.00026039,2]
[319582760,1710882633771,-168.98494512,0.00026039,2]
[319582761,1710882633782,-16211.76976313,0.00026039,2]
[319582762,1710882633792,-6604.78066761,0.00026039,2]
[319582763,1710882633802,-550.0,0.00026039,2]
[319582764,1710882633811,-975.67180921,0.00026039,2]
[319582765,1710882633821,-1163.18450349,0.00026039,2]
[319582766,1710882633832,-10367.22443485,0.00026039,2]
[319582767,1710882633841,-164042.0437166,0.00026039,2]
[319582768,1710882633851,-14475.02763663,0.00026039,2]
[319582769,1710882633860,-7560.6581424,0.00026039,120]
[319582770,1710882633869,-781.89377306,0.00026039,30]
[319582771,1710882633878,-6000.0,0.00026039,2]
[319582772,1710882633888,-1000.22206675,0.00026039,2]
[319582773,1710882633898,-10270.82398488,0.00026039,2]
[319582774,1710882633907,-14164.41396289,0.00026039,2]
[319582775,1710882633916,-545.34353539,0.00026039,2]
[319582776,1710882633926,-2257.95691843,0.00026039,120]
[319582777,1710882633935,-150.0,0.00026039,2]
[319582778,1710882633944,-18229.39177759,0.00026039,2]
[319582779,1710882633954,-632.47003334,0.00026039,2]
[319582780,1710882633963,-606.62348215,0.00026039,2]
[319582781,1710882633973,-208.00295281,0.00026039,2]
[319582782,1710882633983,-148566.4947503,0.00026039,2]
[319582783,1710882633992,-435.09374688,0.00026039,2]
[319582784,1710882634002,-1033.2058117,0.00026039,2]
[319582785,1710882634011,-20574.30844897,0.00026039,2]
[319582786,1710882634021,-2500.0,0.00026039,2]
[319582787,1710882634031,-561.10489628,0.00026039,2]
[319582788,1710882634040,-7867.34631966,0.00026039,2]
[319582789,1710882634050,-26919.57450042,0.00026039,2]
[319582790,1710882634060,-2304.76083611,0.00026039,2]
[319582791,1710882634069,-233.10723666,0.00026039,2]
[319582792,1710882634081,-1591.50892943,0.00026039,2]
[319582793,1710882634090,-521.98570391,0.00026039,2]
[319582794,1710882634100,-10163.0421722,0.00026039,2]
[319582795,1710882634110,-404408.66529855,0.00026039,2]
[319582796,1710882634119,-883.84983441,0.00026039,2]
[319582797,1710882634129,-26710.04842388,0.00026039,2]
[319582798,1710882634149,-9230.87606243,0.00026039,2]
[319582799,1710882634160,-466.43733298,0.00026039,2]
[319582800,1710882634170,-383.3259223,0.00026039,2]
[319582801,1710882634180,-239.39537212,0.00026039,2]
[319582802,1710882634189,-14738.66077454,0.00026039,2]
[319582803,1710882634199,-21277.47341424,0.00026039,2]
[319582804,1710882634209,-315.5302218,0.00026039,2]
[319582805,1710882634218,-2063.53565112,0.00026039,2]
[319582806,1710882634228,-530.51881523,0.00026039,2]
[319582807,1710882634238,-4896.44917843,0.00026039,2]
[319582808,1710882634248,-352.90862757,0.00026039,2]
[319582809,1710882634257,-589.94752519,0.00026039,2]
[319582810,1710882634267,-9453.41524103,0.00026039,2]
[319582811,1710882634277,-35793.07814999,0.00026039,2]
[319582812,1710882634286,-372530.5886248,0.00026039,2]
[319582813,1710882634296,-1779.45698906,0.00026039,2]
[319582814,1710882634307,-336.10330237,0.00026039,2]
[319582815,1710882634317,-5013.91180256,0.00026039,2]
[319582816,1710882634328,-2017.51158449,0.00026039,2]
[319582817,1710882634338,-11467.95966267,0.00026039,2]
[319582818,1710882634347,-13000.0,0.00026039,2]
[319582819,1710882634359,-60000.0,0.00026039,2]
[319582820,1710882634369,-13603.33785899,0.00026039,2]
[319582821,1710882634378,-213.28464647,0.00026039,2]
[319582822,1710882634389,-373.46,0.00026039,2]
[319582823,1710882634398,-4193.24560439,0.00026039,2]
[319582824,1710882634408,-218.42045758,0.00026078,2]
[319582825,1710882634418,-17152.30049207,0.00026547,2]
[319582826,1710882634428,-152.73,0.00026566,2]
[319582827,1710882634438,-209.6,0.00026766,2]
[319582828,1710882634448,-208.64,0.00026785,2]
[319582829,1710882634457,-17152.30049207,0.00027115,2]
[319582830,1710882634467,-196.58307066,0.00027297,3]
[319582831,1710882634477,-151.0,0.00027397,7]
[319582832,1710882634487,-151.0,0.00027397,7]
[319582833,1710882634496,-151.0,0.00027397,7]
[319582834,1710882634506,-151.0,0.00027397,7]
[319582835,1710882634516,-151.0,0.00027397,7]
[319582836,1710882634525,-151.0,0.00027397,7]
[319582837,1710882634535,-151.0,0.00027397,7]
[319582838,1710882634545,-151.0,0.00027397,7]
[319582839,1710882634555,-261.45643,0.00027397,7]
[319582840,1710882634564,-151.0,0.00027397,7]
[319582841,1710882634574,-151.0,0.00027397,7]
[319582842,1710882634584,-151.0,0.00027397,7]
[319582843,1710882634594,-151.0,0.00027397,7]
[319582844,1710882634603,-151.0,0.00027397,7]
[319582845,1710882634613,-151.0,0.00027397,7]
[319582846,1710882634622,-151.0,0.00027397,7]
[319582847,1710882634633,-376.56399,0.00027397,7]
[319582848,1710882634642,-376.56399,0.00027397,7]
[319582849,1710882634652,-151.0,0.00027397,5]
[319582850,1710882634662,-150.0,0.00027397,2]
[319582851,1710882634672,-17152.30049207,0.00027683,2]
[319582852,1710882634681,-17152.30049207,0.00028251,2]
[319582853,1710882634691,-207.6,0.00028257,2]
[319582854,1710882634701,-17152.30049207,0.00028819,2]
[319582855,1710882634711,-196.58307066,0.00028941,4]
[319582856,1710882634720,-2445.0,0.00029011,2]
[319582857,1710882634729,-4763.0,0.00029011,2]
[319582858,1710882634738,-5670.0,0.00029011,2]
[319582859,1710882634748,-42890.0,0.00029011,2]
[319582860,1710882634758,-1044.0,0.00029011,2]
[319582861,1710882634768,-1391.210279,0.0002913,2]
[319582862,1710882634781,-150.0,0.0002923,120]
[319582863,1710882634791,-152.73,0.00029306,2]
[319582864,1710882634801,-17152.30049207,0.00029388,2]
[319582865,1710882634811,-1391.210279,0.00029458,2]
[319582866,1710882634823,-1499.91874011,0.000295,6]
[319582867,1710882634840,-7870.0,0.000296,4]
[319582868,1710882634851,-209.6,0.0002974,2]
[319582869,1710882634864,-208.64,0.00029761,2]
[319582870,1710882634876,-1391.210279,0.00029853,2]
[319582871,1710882634886,-922.7,0.00029863,2]